[Event "Early-Titled-Tuesday-Blitz-May-14-2024"]
[Site "Chess.com"]
[Date "2024.05.14"]
[Round "10"]
[White "David_George21"]
[Black "ValeriyGrinev"]
[Result "1-0"]
[WhiteElo "2400"]
[BlackElo "2579"]
[TimeControl "180+1"]
[EndTime "9:54:50 PDT"]
[Termination "David_George21 won by resignation"]

1. e4 {[%clk 0:03:00.9]} 1... c6 {[%clk 0:03:00.1]} 2. d4 {[%clk 0:02:58.6]}
2... d5 {[%clk 0:03:01]} 3. Nc3 {[%clk 0:02:58.9]} 3... dxe4 {[%clk 0:03:01.3]}
4. Nxe4 {[%clk 0:02:59.8]} 4... Bf5 {[%clk 0:03:01.5]} 5. Ng3 {[%clk 0:02:59.8]}
5... Bg6 {[%clk 0:03:01.9]} 6. h4 {[%clk 0:03:00.4]} 6... h6 {[%clk 0:03:02.2]}
7. h5 {[%clk 0:03:00.2]} 7... Bh7 {[%clk 0:03:02.2]} 8. Nf3 {[%clk 0:02:58.2]}
8... Nd7 {[%clk 0:03:02.3]} 9. Bd3 {[%clk 0:02:58.4]} 9... Bxd3 {[%clk
0:03:02.5]} 10. Qxd3 {[%clk 0:02:59.3]} 10... e6 {[%clk 0:03:03.3]} 11. c3
{[%clk 0:02:59.6]} 11... Ngf6 {[%clk 0:03:03.8]} 12. Bf4 {[%clk 0:02:59]} 12...
Be7 {[%clk 0:03:04.1]} 13. Ne5 {[%clk 0:02:56]} 13... O-O {[%clk 0:03:03.7]} 14.
O-O {[%clk 0:02:51.5]} 14... Nxe5 {[%clk 0:03:02.9]} 15. Bxe5 {[%clk 0:02:51.2]}
15... c5 {[%clk 0:03:03.1]} 16. Rad1 {[%clk 0:02:49.6]} 16... Qb6 {[%clk
0:03:02.6]} 17. Qc2 {[%clk 0:02:46.8]} 17... Rfd8 {[%clk 0:03:02]} 18. dxc5
{[%clk 0:02:46.1]} 18... Qxc5 {[%clk 0:03:00.9]} 19. Bd4 {[%clk 0:02:41.5]}
19... Qg5 {[%clk 0:03:00.4]} 20. Be3 {[%clk 0:02:38.7]} 20... Qg4 {[%clk
0:02:57.3]} 21. Rxd8+ {[%clk 0:02:30.8]} 21... Rxd8 {[%clk 0:02:57.7]} 22. Bxa7
{[%clk 0:02:31.2]} 22... Qh4 {[%clk 0:02:50.3]} 23. Rd1 {[%clk 0:02:19.7]} 23...
Ng4 {[%clk 0:02:35.4]} 24. Rxd8+ {[%clk 0:02:13.7]} 24... Bxd8 {[%clk
0:02:36.3]} 25. Qe4 {[%clk 0:02:03]} 25... Bc7 {[%clk 0:02:30.4]} 26. Qxb7
{[%clk 0:01:56.4]} 26... Bxg3 {[%clk 0:02:20.7]} 27. fxg3 {[%clk 0:01:56.4]}
27... Qxg3 {[%clk 0:02:21.4]} 28. Qb8+ {[%clk 0:01:56.2]} 28... Qxb8 {[%clk
0:02:16.2]} 29. Bxb8 {[%clk 0:01:57.1]} 29... Kf8 {[%clk 0:02:16.5]} 30. a4
{[%clk 0:01:51.8]} 30... Ke7 {[%clk 0:02:15.3]} 31. a5 {[%clk 0:01:51.9]} 31...
Kd7 {[%clk 0:02:15.6]} 32. b4 {[%clk 0:01:41.8]} 32... Ne3 {[%clk 0:02:10.7]}
33. b5 {[%clk 0:01:40.1]} 33... Nc4 {[%clk 0:02:05]} 34. a6 {[%clk 0:01:37.5]}
34... Kc8 {[%clk 0:02:03.9]} 35. Bg3 {[%clk 0:01:35.6]} 35... e5 {[%clk
0:01:59.1]} 36. Bf2 {[%clk 0:01:32.8]} 36... f5 {[%clk 0:01:54.2]} 37. b6 {[%clk
0:01:32.6]} 37... e4 {[%clk 0:01:46]} 38. b7+ {[%clk 0:01:30.2]} 38... Kc7
{[%clk 0:01:40.5]} 39. Bg3+ {[%clk 0:01:30.2]} 1-0

[Event "Early-Titled-Tuesday-Blitz-May-14-2024"]
[Site "Chess.com"]
[Date "2024.05.14"]
[Round "10"]
[White "Happy1712Drummer"]
[Black "ChessSwole"]
[Result "0-1"]
[WhiteElo "2447"]
[BlackElo "2599"]
[TimeControl "180+1"]
[EndTime "9:55:07 PDT"]
[Termination "ChessSwole won by checkmate"]

1. e4 {[%clk 0:03:00.9]} 1... e5 {[%clk 0:02:59.3]} 2. Nf3 {[%clk 0:03:01.1]}
2... Nc6 {[%clk 0:02:59.8]} 3. Nc3 {[%clk 0:03:01.4]} 3... Nf6 {[%clk
0:02:59.8]} 4. d4 {[%clk 0:03:01.2]} 4... exd4 {[%clk 0:02:59.5]} 5. Nd5 {[%clk
0:03:01]} 5... Bc5 {[%clk 0:02:55.7]} 6. Bg5 {[%clk 0:03:00.2]} 6... Be7 {[%clk
0:02:56.1]} 7. h4 {[%clk 0:02:59.6]} 7... h6 {[%clk 0:02:51.7]} 8. Bxf6 {[%clk
0:02:46.7]} 8... Bxf6 {[%clk 0:02:52.6]} 9. Qd2 {[%clk 0:02:45.4]} 9... d6
{[%clk 0:02:50.6]} 10. O-O-O {[%clk 0:02:45.2]} 10... Be6 {[%clk 0:02:44.5]} 11.
Bb5 {[%clk 0:02:20.8]} 11... O-O {[%clk 0:02:42.3]} 12. Rhg1 {[%clk 0:02:19]}
12... Bg4 {[%clk 0:02:36.7]} 13. Rde1 {[%clk 0:02:09.4]} 13... a6 {[%clk
0:02:33.7]} 14. Bd3 {[%clk 0:02:05.4]} 14... Ne5 {[%clk 0:02:29.1]} 15. Nh2
{[%clk 0:01:58.9]} 15... Be6 {[%clk 0:02:26.9]} 16. f4 {[%clk 0:01:47.2]} 16...
Nxd3+ {[%clk 0:02:25.1]} 17. Qxd3 {[%clk 0:01:48.1]} 17... Bxd5 {[%clk 0:02:23]}
18. exd5 {[%clk 0:01:48.3]} 18... Bxh4 {[%clk 0:02:23]} 19. Ref1 {[%clk
0:01:43.2]} 19... Bf6 {[%clk 0:02:22.8]} 20. g4 {[%clk 0:01:43.1]} 20... g5
{[%clk 0:02:18.1]} 21. Nf3 {[%clk 0:01:35.2]} 21... c5 {[%clk 0:02:14.4]} 22.
dxc6 {[%clk 0:01:24.8]} 22... bxc6 {[%clk 0:02:15.3]} 23. fxg5 {[%clk
0:01:25.3]} 23... Bxg5+ {[%clk 0:02:04]} 24. Kb1 {[%clk 0:01:25.5]} 24... c5
{[%clk 0:02:00.4]} 25. Nxg5 {[%clk 0:01:17.3]} 25... Qxg5 {[%clk 0:02:01.3]} 26.
Rf5 {[%clk 0:01:15.4]} 26... Qe3 {[%clk 0:01:50.3]} 27. Qf1 {[%clk 0:01:10.4]}
27... Rab8 {[%clk 0:01:36.1]} 28. g5 {[%clk 0:01:08]} 28... Rxb2+ {[%clk
0:01:34.6]} 29. Kxb2 {[%clk 0:01:05.8]} 29... Rb8+ {[%clk 0:01:35.3]} 30. Ka1
{[%clk 0:00:53.6]} 30... Qc3# {[%clk 0:01:35.8]} 0-1

[Event "Early-Titled-Tuesday-Blitz-May-14-2024"]
[Site "Chess.com"]
[Date "2024.05.14"]
[Round "10"]
[White "teresin05"]
[Black "cukus"]
[Result "1-0"]
[WhiteElo "2273"]
[BlackElo "2347"]
[TimeControl "180+1"]
[EndTime "9:55:07 PDT"]
[Termination "teresin05 won by resignation"]

1. e4 {[%clk 0:03:00.9]} 1... c5 {[%clk 0:02:56.4]} 2. Nf3 {[%clk 0:02:58.3]}
2... e6 {[%clk 0:02:56.4]} 3. d4 {[%clk 0:02:57.6]} 3... cxd4 {[%clk 0:02:57.3]}
4. Nxd4 {[%clk 0:02:57.7]} 4... Nf6 {[%clk 0:02:57.7]} 5. Nc3 {[%clk 0:02:56.8]}
5... Nc6 {[%clk 0:02:58.4]} 6. Ndb5 {[%clk 0:02:56.1]} 6... Bc5 {[%clk
0:02:57.8]} 7. Bf4 {[%clk 0:02:45.6]} 7... O-O {[%clk 0:02:57.1]} 8. Qd2 {[%clk
0:02:38.6]} 8... Ng4 {[%clk 0:01:53.5]} 9. Bg3 {[%clk 0:02:22.3]} 9... Qb6
{[%clk 0:01:50.1]} 10. h3 {[%clk 0:02:07.1]} 10... a6 {[%clk 0:01:29.5]} 11.
hxg4 {[%clk 0:02:05.7]} 11... axb5 {[%clk 0:01:29.3]} 12. Bd3 {[%clk 0:01:57.4]}
12... b4 {[%clk 0:01:28]} 13. e5 {[%clk 0:01:44.4]} 13... bxc3 {[%clk
0:01:10.5]} 14. Bxh7+ {[%clk 0:01:43.3]} 14... Kh8 {[%clk 0:01:11.1]} 15. Qd3
{[%clk 0:01:06.2]} 15... cxb2 {[%clk 0:00:59.1]} 16. Bg8+ {[%clk 0:01:02.8]} 1-0

[Event "Early-Titled-Tuesday-Blitz-May-14-2024"]
[Site "Chess.com"]
[Date "2024.05.14"]
[Round "10"]
[White "NelsonLinda"]
[Black "Casper"]
[Result "1-0"]
[WhiteElo "2623"]
[BlackElo "2508"]
[TimeControl "180+1"]
[EndTime "9:55:15 PDT"]
[Termination "NelsonLinda won by resignation"]

1. d4 {[%clk 0:02:56.5]} 1... Nf6 {[%clk 0:02:59.2]} 2. Nf3 {[%clk 0:02:56.7]}
2... d5 {[%clk 0:02:58.6]} 3. e3 {[%clk 0:02:55.3]} 3... Bg4 {[%clk 0:02:59]} 4.
Be2 {[%clk 0:02:54.8]} 4... e6 {[%clk 0:02:59.3]} 5. O-O {[%clk 0:02:54.9]} 5...
Bd6 {[%clk 0:02:59.8]} 6. Nbd2 {[%clk 0:02:55.4]} 6... Nc6 {[%clk 0:02:59.8]} 7.
c4 {[%clk 0:02:54]} 7... dxc4 {[%clk 0:02:59.6]} 8. Nxc4 {[%clk 0:02:54.1]} 8...
O-O {[%clk 0:03:00.3]} 9. h3 {[%clk 0:02:49]} 9... Bh5 {[%clk 0:02:59.6]} 10.
Nxd6 {[%clk 0:02:47.9]} 10... Qxd6 {[%clk 0:02:58.6]} 11. a3 {[%clk 0:02:45.4]}
11... Rad8 {[%clk 0:02:50.1]} 12. b4 {[%clk 0:02:10]} 12... e5 {[%clk
0:02:47.8]} 13. Bb2 {[%clk 0:02:08.6]} 13... Bxf3 {[%clk 0:02:32.2]} 14. Bxf3
{[%clk 0:02:08]} 14... exd4 {[%clk 0:02:32.8]} 15. Bxc6 {[%clk 0:02:08]} 15...
Qxc6 {[%clk 0:02:28.8]} 16. Bxd4 {[%clk 0:02:07.2]} 16... Ne4 {[%clk 0:02:16.2]}
17. Rc1 {[%clk 0:02:03.4]} 17... Qd6 {[%clk 0:01:55.5]} 18. Qc2 {[%clk
0:02:01.5]} 18... Qg6 {[%clk 0:01:47.6]} 19. Qxc7 {[%clk 0:01:59.5]} 19... Nd2
{[%clk 0:01:47.1]} 20. Rfd1 {[%clk 0:01:52.7]} 20... Nf3+ {[%clk 0:01:16]} 21.
Kh1 {[%clk 0:01:52.8]} 21... Nxd4 {[%clk 0:00:56.1]} 22. exd4 {[%clk 0:01:52.9]}
22... Qe4 {[%clk 0:00:56.7]} 23. Kg1 {[%clk 0:01:51.6]} 23... Rfe8 {[%clk
0:00:50.9]} 24. Qc3 {[%clk 0:01:43.8]} 24... h6 {[%clk 0:00:47.9]} 25. d5 {[%clk
0:01:41.6]} 25... Rxd5 {[%clk 0:00:46.9]} 26. Re1 {[%clk 0:01:41.4]} 1-0

[Event "Early-Titled-Tuesday-Blitz-May-14-2024"]
[Site "Chess.com"]
[Date "2024.05.14"]
[Round "10"]
[White "kekic76"]
[Black "Anu-triz"]
[Result "1-0"]
[WhiteElo "2294"]
[BlackElo "2262"]
[TimeControl "180+1"]
[EndTime "9:55:21 PDT"]
[Termination "kekic76 won by resignation"]

1. e4 {[%clk 0:03:00.9]} 1... e5 {[%clk 0:02:59.9]} 2. Nf3 {[%clk 0:03:00.5]}
2... Nc6 {[%clk 0:02:59.9]} 3. d4 {[%clk 0:03:00]} 3... exd4 {[%clk 0:02:59.8]}
4. Nxd4 {[%clk 0:03:00.9]} 4... Nf6 {[%clk 0:02:57.5]} 5. Nc3 {[%clk 0:03:00]}
5... Bb4 {[%clk 0:02:55.5]} 6. Nxc6 {[%clk 0:03:00]} 6... bxc6 {[%clk
0:02:55.7]} 7. Bd3 {[%clk 0:03:00.6]} 7... O-O {[%clk 0:02:54.9]} 8. O-O {[%clk
0:03:00.7]} 8... d5 {[%clk 0:02:54.7]} 9. exd5 {[%clk 0:02:58.7]} 9... cxd5
{[%clk 0:02:55]} 10. Bg5 {[%clk 0:02:59.2]} 10... Be7 {[%clk 0:02:53.6]} 11. h3
{[%clk 0:02:58]} 11... c6 {[%clk 0:02:52.3]} 12. Qf3 {[%clk 0:02:58.3]} 12...
Rb8 {[%clk 0:02:40.3]} 13. b3 {[%clk 0:02:53.1]} 13... Be6 {[%clk 0:02:38.4]}
14. Ne2 {[%clk 0:02:50.8]} 14... h6 {[%clk 0:02:35.7]} 15. Bxf6 {[%clk
0:02:40.5]} 15... Bxf6 {[%clk 0:02:33.9]} 16. Rad1 {[%clk 0:02:40.6]} 16... c5
{[%clk 0:02:25]} 17. Nf4 {[%clk 0:02:35]} 17... Qd6 {[%clk 0:02:14.8]} 18. Nxe6
{[%clk 0:02:32.5]} 18... fxe6 {[%clk 0:02:15.6]} 19. Qe2 {[%clk 0:02:31.4]}
19... Kh8 {[%clk 0:02:09.8]} 20. Qh5 {[%clk 0:02:25]} 20... c4 {[%clk
0:01:39.8]} 21. bxc4 {[%clk 0:02:22.2]} 21... dxc4 {[%clk 0:01:40.7]} 22. Be4
{[%clk 0:02:07.9]} 22... Qe5 {[%clk 0:00:58]} 23. Qg6 {[%clk 0:02:06.4]} 23...
Kg8 {[%clk 0:00:51.4]} 24. Rd7 {[%clk 0:01:56.3]} 1-0

[Event "Early-Titled-Tuesday-Blitz-May-14-2024"]
[Site "Chess.com"]
[Date "2024.05.14"]
[Round "10"]
[White "CD3m"]
[Black "Mbneu"]
[Result "1-0"]
[WhiteElo "2368"]
[BlackElo "2233"]
[TimeControl "180+1"]
[EndTime "9:55:27 PDT"]
[Termination "CD3m won by resignation"]

1. e4 {[%clk 0:02:59]} 1... c5 {[%clk 0:02:56.8]} 2. Nf3 {[%clk 0:02:58.8]} 2...
Nf6 {[%clk 0:02:56.2]} 3. Nc3 {[%clk 0:02:58.5]} 3... d5 {[%clk 0:02:55.2]} 4.
exd5 {[%clk 0:02:57]} 4... Nxd5 {[%clk 0:02:54.9]} 5. Bb5+ {[%clk 0:02:56.6]}
5... Bd7 {[%clk 0:02:55]} 6. Qe2 {[%clk 0:02:54.7]} 6... a6 {[%clk 0:02:33.2]}
7. Bxd7+ {[%clk 0:02:51.7]} 7... Qxd7 {[%clk 0:02:30.7]} 8. a4 {[%clk
0:02:40.8]} 8... Nc6 {[%clk 0:02:28.8]} 9. O-O {[%clk 0:02:39.9]} 9... e6 {[%clk
0:02:23.7]} 10. b3 {[%clk 0:02:35.4]} 10... Be7 {[%clk 0:02:22.1]} 11. Ne4
{[%clk 0:02:31.3]} 11... O-O {[%clk 0:02:07.5]} 12. d3 {[%clk 0:02:31.7]} 12...
Nd4 {[%clk 0:02:01.8]} 13. Nxd4 {[%clk 0:02:31.3]} 13... cxd4 {[%clk 0:02:02]}
14. Bb2 {[%clk 0:02:26.3]} 14... Rac8 {[%clk 0:01:44.5]} 15. Bxd4 {[%clk
0:02:18.4]} 15... Nf4 {[%clk 0:01:41.6]} 16. Qe3 {[%clk 0:02:12.1]} 16... Qxd4
{[%clk 0:01:40.7]} 17. Qxf4 {[%clk 0:02:12.7]} 17... Rxc2 {[%clk 0:01:39.1]} 18.
Qe3 {[%clk 0:02:02.1]} 18... Qxe3 {[%clk 0:01:33.9]} 19. fxe3 {[%clk 0:02:03]}
19... f5 {[%clk 0:01:32.4]} 20. Ng3 {[%clk 0:01:41.3]} 20... Rc3 {[%clk
0:01:29]} 21. e4 {[%clk 0:01:38.1]} 21... Rxd3 {[%clk 0:01:00]} 22. exf5 {[%clk
0:01:37.1]} 22... exf5 {[%clk 0:00:54.7]} 23. Nxf5 {[%clk 0:01:34.5]} 23... Bc5+
{[%clk 0:00:54.4]} 24. Kh1 {[%clk 0:01:33.3]} 24... Rxb3 {[%clk 0:00:54]} 25.
Rac1 {[%clk 0:01:26.8]} 25... b6 {[%clk 0:00:48.3]} 26. Rxc5 {[%clk 0:01:17]}
1-0

[Event "Early-Titled-Tuesday-Blitz-May-14-2024"]
[Site "Chess.com"]
[Date "2024.05.14"]
[Round "10"]
[White "kritipatel"]
[Black "ChEsper99"]
[Result "1-0"]
[WhiteElo "2184"]
[BlackElo "2250"]
[TimeControl "180+1"]
[EndTime "9:55:46 PDT"]
[Termination "kritipatel won by resignation"]

1. e4 {[%clk 0:02:57.4]} 1... c6 {[%clk 0:02:59.8]} 2. d4 {[%clk 0:02:57.2]}
2... d5 {[%clk 0:03:00.7]} 3. exd5 {[%clk 0:02:57.7]} 3... cxd5 {[%clk 0:03:01]}
4. Bd3 {[%clk 0:02:58.1]} 4... Nf6 {[%clk 0:03:00.7]} 5. c3 {[%clk 0:02:58.6]}
5... Nc6 {[%clk 0:02:58.7]} 6. Bf4 {[%clk 0:02:57.9]} 6... Bg4 {[%clk 0:02:36]}
7. Qb3 {[%clk 0:02:57.7]} 7... Qd7 {[%clk 0:02:31.1]} 8. Nd2 {[%clk 0:02:58.1]}
8... e6 {[%clk 0:02:30.9]} 9. Ngf3 {[%clk 0:02:58.5]} 9... Bd6 {[%clk
0:02:28.4]} 10. Bxd6 {[%clk 0:02:57.5]} 10... Qxd6 {[%clk 0:02:29.3]} 11. O-O
{[%clk 0:02:53]} 11... O-O {[%clk 0:02:28.8]} 12. Rae1 {[%clk 0:02:44.9]} 12...
a5 {[%clk 0:02:22.3]} 13. Ne5 {[%clk 0:02:44.2]} 13... Bh5 {[%clk 0:02:18.7]}
14. f4 {[%clk 0:02:43.4]} 14... Bg6 {[%clk 0:02:04]} 15. f5 {[%clk 0:02:34.5]}
15... Bxf5 {[%clk 0:02:01.2]} 16. Bxf5 {[%clk 0:02:34.4]} 16... exf5 {[%clk
0:02:02.1]} 17. Rxf5 {[%clk 0:02:34.6]} 17... a4 {[%clk 0:01:26.4]} 18. Qd1
{[%clk 0:02:15.6]} 18... a3 {[%clk 0:01:13.2]} 19. b3 {[%clk 0:02:10.8]} 19...
Rae8 {[%clk 0:01:13.6]} 20. Qf3 {[%clk 0:02:03.3]} 20... Ne4 {[%clk 0:00:52.7]}
21. Nxe4 {[%clk 0:01:56.9]} 21... dxe4 {[%clk 0:00:50.4]} 22. Rxe4 {[%clk
0:01:52.1]} 22... Qh6 {[%clk 0:00:31.3]} 23. Nxf7 {[%clk 0:01:48.4]} 23... Qc1+
{[%clk 0:00:28.9]} 24. Kf2 {[%clk 0:01:43.6]} 24... Qd2+ {[%clk 0:00:15.2]} 25.
Kg3 {[%clk 0:01:43.3]} 25... Rxe4 {[%clk 0:00:08.2]} 26. Nh6+ {[%clk 0:01:35.5]}
1-0

[Event "Early-Titled-Tuesday-Blitz-May-14-2024"]
[Site "Chess.com"]
[Date "2024.05.14"]
[Round "10"]
[White "GambitGiesbergen"]
[Black "Shushik"]
[Result "0-1"]
[WhiteElo "2344"]
[BlackElo "2543"]
[TimeControl "180+1"]
[EndTime "9:55:59 PDT"]
[Termination "Shushik won by resignation"]

1. b3 {[%clk 0:03:00.4]} 1... d6 {[%clk 0:02:58.7]} 2. Bb2 {[%clk 0:03:00.9]}
2... e5 {[%clk 0:02:58.9]} 3. e3 {[%clk 0:03:01.4]} 3... Nc6 {[%clk 0:02:57.8]}
4. Bc4 {[%clk 0:02:58.9]} 4... g6 {[%clk 0:02:47.6]} 5. Nf3 {[%clk 0:02:53.1]}
5... Bg7 {[%clk 0:02:47.6]} 6. O-O {[%clk 0:02:52.4]} 6... Nge7 {[%clk
0:02:45.1]} 7. d4 {[%clk 0:02:51.7]} 7... e4 {[%clk 0:02:37]} 8. Nfd2 {[%clk
0:02:49.9]} 8... O-O {[%clk 0:02:27.1]} 9. f3 {[%clk 0:02:46.6]} 9... d5 {[%clk
0:02:22.3]} 10. Bb5 {[%clk 0:02:45]} 10... Nf5 {[%clk 0:02:19.3]} 11. Qe2 {[%clk
0:02:40.4]} 11... Ncxd4 {[%clk 0:02:05.6]} 12. exd4 {[%clk 0:02:29.3]} 12...
Nxd4 {[%clk 0:02:00.2]} 13. Qf2 {[%clk 0:01:53.6]} 13... e3 {[%clk 0:01:37.4]}
14. Qxe3 {[%clk 0:01:27.1]} 14... Nxc2 {[%clk 0:01:33.3]} 15. Qd3 {[%clk
0:01:27.5]} 15... Bxb2 {[%clk 0:01:31.9]} 16. Qxc2 {[%clk 0:01:27.2]} 16... Bxa1
{[%clk 0:01:32.3]} 17. Nc3 {[%clk 0:01:22.6]} 17... Bf5 {[%clk 0:01:30.8]} 18.
Bd3 {[%clk 0:01:13.9]} 18... Bxc3 {[%clk 0:01:26.6]} 19. Qxc3 {[%clk 0:01:11.3]}
19... Bxd3 {[%clk 0:01:24.7]} 20. Qxd3 {[%clk 0:01:12.2]} 20... c6 {[%clk
0:01:25.2]} 21. b4 {[%clk 0:01:06.5]} 21... Qb6+ {[%clk 0:01:25]} 22. Kh1 {[%clk
0:01:07]} 22... Rfe8 {[%clk 0:01:21.8]} 23. f4 {[%clk 0:01:07.9]} 23... Re3
{[%clk 0:01:21.3]} 24. Qc2 {[%clk 0:01:07]} 24... Rae8 {[%clk 0:01:18.1]} 25.
Nf3 {[%clk 0:01:07.4]} 25... Qxb4 {[%clk 0:01:16.9]} 26. f5 {[%clk 0:01:07.7]}
26... Qe4 {[%clk 0:01:15]} 27. Qb2 {[%clk 0:01:03]} 27... Qxf5 {[%clk
0:01:12.5]} 28. Qxb7 {[%clk 0:01:02.4]} 28... d4 {[%clk 0:01:09.5]} 29. Qxc6
{[%clk 0:00:59.8]} 29... d3 {[%clk 0:01:09.9]} 30. Qd6 {[%clk 0:00:57.5]} 30...
Re2 {[%clk 0:01:05.7]} 31. h3 {[%clk 0:00:47]} 31... d2 {[%clk 0:00:58.8]} 32.
Nxd2 {[%clk 0:00:47.3]} 32... Rxd2 {[%clk 0:00:59.1]} 0-1

[Event "Early-Titled-Tuesday-Blitz-May-14-2024"]
[Site "Chess.com"]
[Date "2024.05.14"]
[Round "10"]
[White "AniJak"]
[Black "Chernov_Alexander_A"]
[Result "0-1"]
[WhiteElo "2363"]
[BlackElo "2286"]
[TimeControl "180+1"]
[EndTime "9:56:03 PDT"]
[Termination "Chernov_Alexander_A won by resignation"]

1. e4 {[%clk 0:02:38.2]} 1... d6 {[%clk 0:02:59.2]} 2. d4 {[%clk 0:02:36.9]}
2... Nf6 {[%clk 0:02:58.9]} 3. Nc3 {[%clk 0:02:37.8]} 3... Nbd7 {[%clk
0:02:58.4]} 4. g3 {[%clk 0:02:36.3]} 4... e5 {[%clk 0:02:58.4]} 5. Nge2 {[%clk
0:02:34.4]} 5... c6 {[%clk 0:02:55.9]} 6. a4 {[%clk 0:02:26.8]} 6... Be7 {[%clk
0:02:50.8]} 7. Bg2 {[%clk 0:02:23.6]} 7... O-O {[%clk 0:02:50.9]} 8. O-O {[%clk
0:02:23.4]} 8... Re8 {[%clk 0:02:46.2]} 9. h3 {[%clk 0:02:22.4]} 9... exd4
{[%clk 0:02:41.1]} 10. Nxd4 {[%clk 0:02:22.2]} 10... Nc5 {[%clk 0:02:40]} 11.
Nf5 {[%clk 0:02:16.3]} 11... Bf8 {[%clk 0:02:38.9]} 12. Bg5 {[%clk 0:02:16]}
12... h6 {[%clk 0:02:34.4]} 13. Bxf6 {[%clk 0:01:43.1]} 13... Qxf6 {[%clk
0:02:34]} 14. g4 {[%clk 0:01:41.9]} 14... g6 {[%clk 0:02:26]} 15. Ng3 {[%clk
0:01:36.8]} 15... a5 {[%clk 0:02:24.9]} 16. f4 {[%clk 0:01:24]} 16... Bd7 {[%clk
0:02:23.8]} 17. Qf3 {[%clk 0:01:17.2]} 17... Rad8 {[%clk 0:02:16.1]} 18. Rad1
{[%clk 0:01:16.6]} 18... Bc8 {[%clk 0:02:14.4]} 19. f5 {[%clk 0:01:11]} 19...
Nd7 {[%clk 0:01:50.2]} 20. Qf2 {[%clk 0:01:10.9]} 20... d5 {[%clk 0:01:42.9]}
21. exd5 {[%clk 0:01:09.2]} 21... Bc5 {[%clk 0:01:41.7]} 22. Nce4 {[%clk
0:01:02.1]} 22... Bxf2+ {[%clk 0:01:40.7]} 23. Rxf2 {[%clk 0:01:01.7]} 23...
Qxb2 {[%clk 0:01:36.3]} 24. fxg6 {[%clk 0:01:00.4]} 24... fxg6 {[%clk
0:01:35.4]} 25. dxc6 {[%clk 0:00:58.5]} 25... bxc6 {[%clk 0:01:34.2]} 26. Nd6
{[%clk 0:00:58.3]} 26... Rf8 {[%clk 0:01:25.7]} 27. Rfd2 {[%clk 0:00:51.5]}
27... Ne5 {[%clk 0:01:13.8]} 28. Nc4 {[%clk 0:00:35.4]} 28... Nxc4 {[%clk
0:01:07.4]} 29. Rxd8 {[%clk 0:00:35.3]} 29... Qb6+ {[%clk 0:01:07.2]} 30. Kh2
{[%clk 0:00:33.7]} 30... Rxd8 {[%clk 0:01:06.9]} 0-1

[Event "Early-Titled-Tuesday-Blitz-May-14-2024"]
[Site "Chess.com"]
[Date "2024.05.14"]
[Round "10"]
[White "ItsCheckM8Mate"]
[Black "th3d4rkness"]
[Result "0-1"]
[WhiteElo "2223"]
[BlackElo "2169"]
[TimeControl "180+1"]
[EndTime "9:56:03 PDT"]
[Termination "th3d4rkness won by checkmate"]

1. d4 {[%clk 0:02:54.3]} 1... Nf6 {[%clk 0:02:43.1]} 2. Nc3 {[%clk 0:02:54.2]}
2... d5 {[%clk 0:02:36.8]} 3. Bf4 {[%clk 0:02:53.5]} 3... c5 {[%clk 0:02:33.6]}
4. dxc5 {[%clk 0:02:51.6]} 4... Nc6 {[%clk 0:02:32.3]} 5. e4 {[%clk 0:02:46.2]}
5... d4 {[%clk 0:02:25.4]} 6. Nb5 {[%clk 0:02:42.4]} 6... e5 {[%clk 0:02:24]} 7.
Bg5 {[%clk 0:02:39.3]} 7... Bxc5 {[%clk 0:02:22.6]} 8. c3 {[%clk 0:02:34.4]}
8... a6 {[%clk 0:02:17.3]} 9. Bxf6 {[%clk 0:02:30.8]} 9... gxf6 {[%clk 0:02:13]}
10. cxd4 {[%clk 0:02:29.8]} 10... Nxd4 {[%clk 0:01:57.7]} 11. Nxd4 {[%clk
0:02:20.5]} 11... Bxd4 {[%clk 0:01:56.9]} 12. Qd2 {[%clk 0:02:10.7]} 12... Qb6
{[%clk 0:01:43.1]} 13. Rb1 {[%clk 0:02:04.8]} 13... Be6 {[%clk 0:01:41.7]} 14.
a3 {[%clk 0:01:52.7]} 14... Rd8 {[%clk 0:01:10.7]} 15. Nf3 {[%clk 0:01:31]}
15... Ba2 {[%clk 0:01:00.7]} 16. Nxd4 {[%clk 0:00:53.8]} 16... Rxd4 {[%clk
0:00:59]} 17. Qc2 {[%clk 0:00:52.3]} 17... Bxb1 {[%clk 0:00:49.6]} 18. Qxb1
{[%clk 0:00:53.2]} 18... Qa5+ {[%clk 0:00:38.5]} 19. Ke2 {[%clk 0:00:43.8]}
19... Qd2+ {[%clk 0:00:32]} 20. Kf3 {[%clk 0:00:44.1]} 20... Qf4+ {[%clk
0:00:28.6]} 21. Ke2 {[%clk 0:00:44.2]} 21... Rd2+ {[%clk 0:00:28.7]} 22. Ke1
{[%clk 0:00:45]} 22... Qxf2# {[%clk 0:00:28.9]} 0-1

[Event "Early-Titled-Tuesday-Blitz-May-14-2024"]
[Site "Chess.com"]
[Date "2024.05.14"]
[Round "10"]
[White "NCchamp"]
[Black "KanalSzachowy"]
[Result "1-0"]
[WhiteElo "2312"]
[BlackElo "2383"]
[TimeControl "180+1"]
[EndTime "9:56:07 PDT"]
[Termination "NCchamp won by resignation"]

1. d4 {[%clk 0:03:00.9]} 1... Nf6 {[%clk 0:02:59.7]} 2. Bg5 {[%clk 0:03:00.2]}
2... d5 {[%clk 0:02:58.1]} 3. e3 {[%clk 0:02:59.6]} 3... Nbd7 {[%clk 0:02:49]}
4. Nf3 {[%clk 0:02:55.8]} 4... h6 {[%clk 0:02:47.8]} 5. Bh4 {[%clk 0:02:55.2]}
5... e6 {[%clk 0:02:47.1]} 6. Bd3 {[%clk 0:02:53.8]} 6... Be7 {[%clk 0:02:47.1]}
7. Nbd2 {[%clk 0:02:52]} 7... O-O {[%clk 0:02:44.8]} 8. Qe2 {[%clk 0:02:50.8]}
8... c5 {[%clk 0:02:43.7]} 9. c3 {[%clk 0:02:50.4]} 9... cxd4 {[%clk 0:02:41.6]}
10. exd4 {[%clk 0:02:49.2]} 10... a6 {[%clk 0:02:32.2]} 11. g4 {[%clk
0:02:37.8]} 11... Nxg4 {[%clk 0:02:23.1]} 12. Bxe7 {[%clk 0:02:36.9]} 12... Qxe7
{[%clk 0:02:24]} 13. Rg1 {[%clk 0:02:36.9]} 13... Ngf6 {[%clk 0:02:18.5]} 14.
Ne5 {[%clk 0:02:35.9]} 14... Kh8 {[%clk 0:02:00.3]} 15. f4 {[%clk 0:02:33.9]}
15... b5 {[%clk 0:01:55.8]} 16. Qg2 {[%clk 0:02:20.3]} 16... Nh5 {[%clk
0:01:47.7]} 17. Qg4 {[%clk 0:02:06.5]} 17... Ndf6 {[%clk 0:01:45.3]} 18. Qf3
{[%clk 0:01:44.2]} 18... Bb7 {[%clk 0:01:42.9]} 19. Bg6 {[%clk 0:01:42.6]} 19...
Ne4 {[%clk 0:01:09]} 20. Qxh5 {[%clk 0:01:41.8]} 20... Nxd2 {[%clk 0:01:02]} 21.
Kxd2 {[%clk 0:01:42.7]} 21... b4 {[%clk 0:00:57.2]} 22. Bxf7 {[%clk 0:01:34.8]}
22... bxc3+ {[%clk 0:00:52.7]} 23. bxc3 {[%clk 0:01:33.6]} 23... Qa3 {[%clk
0:00:50]} 24. Ng6+ {[%clk 0:01:29]} 24... Kh7 {[%clk 0:00:49.2]} 25. Nxf8+
{[%clk 0:01:28.1]} 25... Kh8 {[%clk 0:00:47.8]} 26. Qg6 {[%clk 0:01:03.3]} 26...
Qb2+ {[%clk 0:00:45.2]} 27. Kd3 {[%clk 0:00:59.8]} 27... Qb5+ {[%clk 0:00:37.4]}
28. Ke3 {[%clk 0:00:59.7]} 1-0